bitfinex-derivatives/quotes_SOLF0:USTF0_20250928
["timestamp","ask_amount","ask_price","bid_price","bid_amount"]
[1759042661308,7.58,201.56,201.52,4.4637]
[1759042661816,7.58,201.56,201.53,8.16]
[1759042662218,7.58,201.56,201.52,4.4637]
[1759042662413,7.58,201.61,201.53,8.16]
[1759042662915,4.4627,201.58,201.53,8.16]
[1759042663718,7.58,201.57,201.53,8.16]
[1759042663918,4.4627,201.58,201.53,8.16]
[1759042664113,7.58,201.57,201.53,8.16]
[1759042664318,7.58,201.57,201.52,8.16]
[1759042664723,4.4627,201.58,201.52,8.16]
[1759042665722,12.0427,201.58,201.52,4.4637]
[1759042665922,12.0427,201.58,201.53,8.16]
[1759042666117,12.0427,201.58,201.52,4.4637]
[1759042666317,12.0427,201.58,201.53,8.16]
[1759042666517,12.0427,201.58,201.52,4.4637]
[1759042666719,4.4627,201.58,201.52,4.4637]
[1759042667023,12.0427,201.58,201.53,8.16]
[1759042667421,7.58,201.57,201.52,4.4637]
[1759042667621,4.4627,201.58,201.53,8.16]
[1759042668919,7.58,201.57,201.52,4.4637]
[1759042669124,4.4627,201.58,201.52,4.4637]
[1759042669322,7.58,201.57,201.52,4.4637]
[1759042669521,4.4627,201.58,201.52,4.4637]
[1759042669921,12.0427,201.58,201.53,8.16]
[1759042670524,4.4627,201.58,201.52,4.4637]
[1759042670722,12.0427,201.58,201.53,8.16]
[1759042671025,4.4627,201.58,201.52,4.4637]
[1759042671420,7.58,201.57,201.52,8.16]
[1759042671620,4.4627,201.58,201.52,8.16]
[1759042672125,4.4627,201.58,201.51,5.53967341]
[1759042672325,7.58,201.57,201.52,8.16]
[1759042672725,12.0427,201.58,201.52,8.16]
[1759042674129,12.0427,201.58,201.52,12.6237]
[1759042677131,12.0427,201.58,201.53,4.4635]
[1759042677432,7.58,201.58,201.53,4.4635]
[1759042677728,7.58,201.58,201.54,7.42]
[1759042678330,7.58,201.58,201.53,4.4635]
[1759042678526,7.65,201.59,201.54,7.42]
[1759042678723,4.462,201.6,201.53,4.4635]
[1759042679125,7.65,201.59,201.54,7.42]
[1759042679324,4.462,201.6,201.53,4.4635]
[1759042679524,7.65,201.59,201.53,4.4635]
[1759042680121,4.462,201.6,201.53,4.4635]
[1759042680325,4.4624,201.59,201.54,7.42]
[1759042680530,7.65,201.58,201.54,7.42]
[1759042680732,4.4624,201.59,201.54,7.42]
[1759042680935,7.65,201.58,201.54,7.42]
[1759042681938,7.65,201.57,201.54,7.42]
[1759042682642,4.4626,201.58,201.54,7.42]
[1759042682930,7.65,201.57,201.54,7.42]
[1759042683730,4.4626,201.58,201.54,7.42]
[1759042684029,7.65,201.57,201.54,7.42]
[1759042686839,7.65,201.57,201.52,5.53967341]
[1759042687043,4.4626,201.58,201.52,5.53967341]
[1759042687343,12.1126,201.58,201.53,7.42]
[1759042687745,12.1126,201.58,201.52,7.42]
[1759042690951,7.65,201.58,201.51,5.53967341]
[1759042691147,7.65,201.58,201.52,5.53967341]
[1759042691446,7.65,201.58,201.53,7.34]
[1759042691743,7.65,201.58,201.53,4.4634]
[1759042691947,4.4624,201.59,201.53,4.4634]
[1759042692239,12.1424,201.59,201.54,7.34]
[1759042693236,12.1424,201.59,201.53,4.4634]
[1759042693441,12.1424,201.59,201.54,7.34]
[1759042693746,12.1424,201.59,201.53,4.4634]
[1759042693944,4.4624,201.59,201.53,4.4634]
[1759042694451,4.4624,201.59,201.54,7.34]
[1759042694639,7.68,201.58,201.53,4.4634]
[1759042694839,4.4624,201.59,201.54,7.34]
[1759042695245,7.68,201.58,201.54,7.34]
[1759042695649,12.1424,201.59,201.54,7.34]
[1759042696555,4.4624,201.59,201.53,4.4634]
[1759042696742,7.68,201.58,201.53,4.4634]
[1759042697046,4.4624,201.59,201.54,7.34]
[1759042697242,7.68,201.58,201.53,11.8034]
[1759042697438,12.1424,201.59,201.54,7.34]
[1759042697839,4.4624,201.59,201.54,7.34]
[1759042698039,7.68,201.58,201.53,4.4634]
[1759042698445,7.68,201.58,201.54,7.34]
[1759042698748,7.68,201.58,201.53,11.8034]
[1759042698944,7.68,201.58,201.53,4.4634]
[1759042699152,4.4624,201.59,201.53,4.4634]
[1759042699449,4.4624,201.59,201.54,7.34]
[1759042699649,12.1419,201.61,201.55,7.34]
[1759042700547,12.1419,201.61,201.55,11.803]
[1759042701347,4.4621,201.6,201.55,7.34]
[1759042701550,12.1421,201.6,201.54,7.34]
[1759042702750,7.68,201.59,201.56,7.34]
[1759042702951,4.4621,201.6,201.56,7.34]
[1759042703350,7.95,201.59,201.56,7.34]
[1759042703654,4.4621,201.6,201.56,7.34]
[1759042704045,7.95,201.59,201.56,7.34]
[1759042704949,4.4621,201.6,201.56,7.34]
[1759042705553,7.95,201.59,201.56,7.34]
[1759042706046,4.4621,201.6,201.56,7.34]
[1759042706257,7.95,201.59,201.56,7.34]
[1759042707151,7.95,201.58,201.56,7.34]
[1759042708251,7.95,201.58,201.55,1.73182777]
[1759042708448,7.95,201.58,201.56,8.01]
[1759042708750,7.95,201.58,201.55,1.73182777]
[1759042708952,7.95,201.58,201.56,8.01]
[1759042709142,4.4623,201.59,201.56,8.01]
[1759042709338,12.4123,201.59,201.55,1.73182777]
[1759042709743,12.4123,201.59,201.57,8.01]
[1759042710452,7.95,201.59,201.57,8.01]
[1759042722264,4.4621,201.6,201.55,8.01]
[1759042722668,12.4121,201.6,201.55,8.01]
[1759042722856,4.4621,201.6,201.54,4.4632]
[1759042723157,7.95,201.59,201.55,8.01]
[1759042723663,7.95,201.62,201.56,8.01]
[1759042724552,7.95,201.62,201.56,12.4728]
[1759042727965,4.4614,201.63,201.56,4.4628]
[1759042728160,12.4114,201.63,201.57,8.01]
[1759042730259,12.4114,201.63,201.57,14.20442777]
[1759042732269,7.95,201.63,201.58,8.01]
[1759042732468,7.95,201.63,201.57,6.19442777]
[1759042732764,7.95,201.63,201.58,8.01]
[1759042732971,7.95,201.66,201.6,8.01]
[1759042733969,12.4108,201.66,201.6,8.01]
[1759042735270,4.4611,201.65,201.6,8.01]
[1759042735671,7.84,201.64,201.6,8.01]
[1759042736067,7.84,201.64,201.59,9.52182777]
[1759042736264,7.84,201.64,201.59,1.73182777]
[1759042736670,136.37582493,201.73,201.6,7.79]
[1759042736868,7.84,201.72,201.64,7.79]
[1759042737270,7.84,201.72,201.64,9.52182777]
[1759042737675,4.4599,201.7,201.64,9.52182777]
[1759042737972,7.84,201.72,201.64,9.52182777]
[1759042738574,4.4602,201.69,201.64,9.52182777]
[1759042738762,12.3002,201.69,201.65,7.79]
[1759042738967,12.3002,201.69,201.64,1.73182777]
[1759042739668,12.3002,201.69,201.65,7.79]
[1759042739871,12.3002,201.69,201.64,1.73182777]
[1759042740071,7.84,201.68,201.64,1.73182777]
[1759042740371,7.84,201.68,201.65,7.79]
[1759042745274,7.84,201.68,201.64,1.73182777]
[1759042745474,7.84,201.68,201.65,7.79]
[1759042745670,7.84,201.68,201.64,1.73182777]
[1759042746677,7.84,201.68,201.65,7.79]
[1759042747077,7.84,201.68,201.64,1.73182777]
[1759042747975,12.3004,201.68,201.65,7.79]
[1759042748175,12.3004,201.68,201.64,1.73182777]
[1759042748383,12.3004,201.68,201.65,7.79]
[1759042749384,12.3004,201.68,201.64,1.73182777]
[1759042749879,12.3004,201.68,201.65,7.78]
[1759042751992,12.3004,201.68,201.64,1.73182777]
[1759042752185,12.3004,201.68,201.65,7.78]
[1759042753286,12.3004,201.68,201.64,1.73182777]
[1759042753492,12.3004,201.68,201.65,7.78]
[1759042755093,7.71,201.67,201.64,1.73182777]
[1759042755488,4.4607,201.67,201.64,1.73182777]
[1759042755689,7.71,201.66,201.64,1.73182777]
[1759042755990,7.71,201.66,201.64,9.51182777]
[1759042757294,12.1707,201.67,201.64,1.73182777]
[1759042757493,12.1707,201.67,201.65,7.78]
[1759042757794,7.71,201.66,201.64,9.51182777]
[1759042763497,7.71,201.66,201.64,1.73182777]
[1759042763694,7.71,201.66,201.64,9.18182777]
[1759042764598,7.71,201.66,201.64,7.45]
[1759042766602,7.71,201.66,201.61,7.16548504]
[1759042767006,7.67,201.72,201.62,7.45]
[1759042767699,7.67,201.7,201.62,7.45]
[1759042768293,7.67,201.7,201.63,7.45]
[1759042768895,7.67,201.7,201.63,10.15378504]
[1759042770708,7.67,201.7,201.64,4.461]
[1759042772713,7.67,201.74,201.66,2.70378504]
[1759042772908,7.67,201.74,201.67,7.45]
[1759042773713,7.67,201.74,201.67,11.9105]
[1759042774316,7.67,201.74,201.68,11.9101]
[1759042776514,12.1291,201.74,201.68,7.45]
[1759042784426,7.67,201.74,201.68,7.45]
[1759042784821,7.67,201.74,201.69,4.46]
[1759042785030,4.4584,201.77,201.7,7.45]
[1759042785325,7.67,201.76,201.7,7.45]
[1759042786626,4.4584,201.77,201.7,11.9097]
[1759042786827,7.67,201.76,201.7,11.9097]
[1759042792028,7.67,201.76,201.71,4.4595]
[1759042792227,4.4584,201.77,201.71,4.4595]
[1759042792421,4.4584,201.77,201.72,7.45]
[1759042793020,7.67,201.76,201.72,7.45]
[1759042793332,7.51,201.76,201.72,7.45]
[1759042793828,4.4584,201.77,201.72,7.45]
[1759042794728,7.51,201.76,201.72,7.45]
[1759042794928,4.4584,201.77,201.72,7.45]
[1759042795125,7.51,201.76,201.72,7.45]
[1759042795525,4.4584,201.77,201.72,7.45]
[1759042795937,7.51,201.76,201.72,7.45]
[1759042796230,4.4584,201.77,201.72,7.45]
[1759042796426,7.51,201.76,201.72,7.45]
[1759042797227,4.4584,201.77,201.72,7.45]
[1759042797726,7.51,201.76,201.72,7.45]
[1759042798120,4.4584,201.77,201.72,7.45]
[1759042799431,11.9684,201.77,201.71,7.42]
[1759042800433,7.51,201.77,201.69,2.70378504]
[1759042800630,7.51,201.77,201.7,7.42]
[1759042802833,7.51,201.76,201.74,7.42]
[1759042812039,4.4584,201.77,201.7,4.4598]
[1759042812234,7.56,201.76,201.71,7.7]
[1759042812439,12.0184,201.77,201.71,7.7]
[1759042812639,7.56,201.77,201.71,12.1595]
[1759042812839,7.56,201.77,201.72,7.7]
[1759042813041,7.56,201.78,201.72,7.7]
[1759042814542,12.0182,201.78,201.72,7.7]
[1759042817946,12.0182,201.78,201.72,12.1592]
[1759042819240,7.56,201.78,201.72,12.1592]
[1759042820047,12.0181,201.78,201.72,12.1592]
[1759042822548,12.0184,201.77,201.71,7.7]
[1759042822949,7.56,201.75,201.69,5.53967341]
[1759042823146,7.56,201.78,201.69,7.7]
[1759042823338,4.4585,201.76,201.69,12.1598]
[1759042823541,7.52,201.75,201.7,7.83]
[1759042823744,7.52,201.75,201.71,7.83]
[1759042824442,4.4585,201.76,201.71,7.83]
[1759042824647,7.52,201.75,201.71,9.55919524]
[1759042825044,4.4585,201.76,201.71,9.55919524]
[1759042825246,7.52,201.75,201.71,9.55919524]
[1759042825548,4.4585,201.76,201.71,9.55919524]
[1759042825750,7.52,201.75,201.71,9.55919524]
[1759042826345,4.4585,201.76,201.71,9.55919524]
[1759042827449,7.52,201.75,201.71,9.55919524]
[1759042827759,4.4585,201.76,201.72,7.83]
[1759042828250,7.52,201.75,201.72,7.83]
[1759042828449,4.4585,201.76,201.72,7.83]
[1759042828852,7.52,201.75,201.72,7.83]
[1759042830253,4.4585,201.76,201.72,7.83]
[1759042830448,7.52,201.75,201.72,7.83]
[1759042830847,4.4585,201.76,201.72,7.83]
[1759042831962,7.52,201.75,201.72,7.83]
[1759042832255,4.4585,201.76,201.72,7.83]
[1759042832454,7.52,201.75,201.72,7.83]
[1759042834247,7.52,201.75,201.71,1.72919524]
[1759042834962,7.52,201.75,201.72,7.83]
[1759042835457,7.52,201.75,201.71,1.72919524]
[1759042836155,7.52,201.75,201.72,7.83]
[1759042836357,7.52,201.75,201.71,1.72919524]
[1759042836553,7.52,201.75,201.72,7.83]
[1759042836950,7.52,201.75,201.71,1.72919524]
[1759042837149,7.52,201.75,201.72,7.83]
[1759042837346,7.52,201.75,201.71,1.72919524]
[1759042837552,7.52,201.75,201.72,7.83]
[1759042838662,7.52,201.75,201.73,1.72919524]
[1759042838856,7.52,201.75,201.73,9.55919524]
[1759042839160,7.52,201.77,201.74,7.83]
[1759042839359,7.52,201.77,201.73,1.72919524]
[1759042839562,7.52,201.77,201.74,7.83]
[1759042839962,7.52,201.77,201.73,1.72919524]
[1759042840161,7.52,201.77,201.75,9.55919524]
[1759042841863,4.4581,201.78,201.76,7.83]
[1759042842065,7.52,201.77,201.76,7.83]
[1759042843065,7.52,201.79,201.76,7.83]
[1759042843668,4.4576,201.8,201.76,7.83]
[1759042844760,7.52,201.79,201.76,7.83]
[1759042845155,4.4576,201.8,201.76,7.83]
[1759042845359,7.52,201.79,201.76,7.83]
[1759042845766,4.4576,201.8,201.76,7.83]
[1759042846266,7.52,201.79,201.76,7.83]
[1759042846466,4.4576,201.8,201.76,7.83]
[1759042847170,7.52,201.79,201.76,7.83]
[1759042847370,4.4576,201.8,201.76,7.83]
[1759042847770,7.52,201.79,201.76,7.83]
[1759042847974,4.4576,201.8,201.76,7.83]
[1759042848264,7.52,201.79,201.75,1.72919524]
[1759042848467,4.4576,201.8,201.76,7.83]
[1759042848775,7.52,201.79,201.75,1.72919524]
[1759042849267,7.52,201.79,201.76,7.83]
[1759042849571,7.52,201.79,201.75,1.72919524]
[1759042849773,7.52,201.79,201.76,9.55919524]
[1759042850272,7.52,201.79,201.77,7.83]
[1759042850474,7.52,201.79,201.76,1.72919524]
[1759042850773,7.52,201.79,201.77,7.83]
[1759042853273,7.52,201.79,201.77,7.77]
[1759042853681,4.4576,201.8,201.77,7.77]
[1759042853877,12.0576,201.8,201.77,7.77]
[1759042854270,12.0576,201.8,201.76,1.72919524]
[1759042854573,12.0576,201.8,201.77,7.77]
[1759042855075,12.0576,201.8,201.76,1.72919524]
[1759042855377,12.0576,201.8,201.77,7.77]
[1759042856174,7.6,201.79,201.77,7.77]
[1759042858480,12.0571,201.82,201.77,7.77]
[1759042858773,4.4571,201.82,201.76,1.72919524]
[1759042859480,7.6,201.81,201.76,9.49919524]
[1759042859781,7.6,201.81,201.77,7.77]
[1759042859972,4.4571,201.82,201.76,1.72919524]
[1759042860372,7.6,201.81,201.76,9.49919524]
[1759042860570,7.6,201.81,201.76,1.72919524]
[1759042860777,7.6,201.81,201.76,9.49919524]
[1759042860977,7.6,201.81,201.76,1.72919524]
[1759042861178,4.4575,201.81,201.76,1.72919524]
[1759042861381,4.4575,201.81,201.77,7.77]
[1759042861685,7.6,201.8,201.77,7.77]
[1759042862378,4.4575,201.81,201.77,7.77]
[1759042862779,7.6,201.8,201.77,7.77]
[1759042863283,4.4575,201.81,201.77,7.77]
[1759042863482,7.6,201.8,201.77,7.77]
[1759042867487,4.4567,201.84,201.78,7.77]
[1759042867678,7.6,201.83,201.78,1.72919524]
[1759042867883,4.4567,201.84,201.78,1.72919524]
[1759042868081,4.4567,201.84,201.79,7.77]
[1759042868476,7.6,201.83,201.79,7.77]
[1759042868682,4.4567,201.84,201.79,7.77]
[1759042868982,7.6,201.83,201.79,7.77]
[1759042869182,7.6,201.82,201.79,7.77]
[1759042869688,4.457,201.83,201.79,7.77]
[1759042870292,7.87,201.82,201.79,7.77]
[1759042875101,7.87,201.82,201.79,7.71]
[1759042878095,7.87,201.82,201.78,1.72919524]
[1759042878300,7.87,201.82,201.79,7.71]
[1759042885701,4.457,201.83,201.79,7.71]
[1759042886001,7.47,201.81,201.79,7.71]
[1759042887203,11.9274,201.81,201.79,7.71]
[1759042889100,7.47,201.82,201.74,7.35]
[1759042889302,7.47,201.8,201.74,7.35]
[1759042890707,11.9286,201.76,201.7,7.35]
[1759042894301,4.4588,201.75,201.7,7.35]
[1759042894512,4.4588,201.75,201.68,22.38445413]
[1759042894712,11.9288,201.75,201.69,7.35]
[1759042894908,7.47,201.75,201.69,7.35]
[1759042895117,4.4584,201.77,201.7,7.35]
[1759042895422,69.3135,201.88,201.74,2.7000194]
[1759042895423,7.47,201.82,201.74,2.7000194]
[1759042895604,7.47,201.82,201.75,7.35]
[1759042895808,4.4575,201.81,201.75,7.35]
[1759042896413,7.47,201.8,201.75,7.35]
[1759042896614,11.9275,201.81,201.75,7.35]
[1759042897812,11.9275,201.81,201.75,2.7000194]
[1759042898014,11.9275,201.81,201.76,7.35]
[1759042898515,11.9275,201.81,201.75,2.7000194]
[1759042898713,11.9275,201.81,201.76,7.35]
[1759042899318,11.9275,201.81,201.75,2.7000194]
[1759042899519,4.4575,201.81,201.75,2.7000194]
[1759042899817,7.47,201.8,201.76,7.35]
[1759042900212,7.47,201.8,201.75,2.7000194]
[1759042900611,7.47,201.8,201.76,7.35]
[1759042900816,7.47,201.8,201.75,2.7000194]
[1759042901217,7.47,201.8,201.76,7.35]
[1759042902122,4.4577,201.8,201.74,7.35]
[1759042902319,7.47,201.82,201.74,7.35]
[1759042903717,11.9279,201.79,201.73,7.35]
[1759042907724,72.0340194,201.82,201.71,15.58969281]
[1759042908024,7.47,201.81,201.71,10.0500194]
[1759042908220,4.4584,201.77,201.71,10.0500194]
[1759042908420,7.47,201.76,201.72,7.35]
[1759042908620,4.4584,201.77,201.72,7.35]
[1759042908815,7.47,201.76,201.72,7.35]
[1759042909520,11.9284,201.77,201.71,7.35]
[1759042915029,11.7986,201.76,201.7,7.1597194]
[1759042915229,11.7986,201.76,201.71,7.58]
[1759042915432,11.7986,201.76,201.7,7.1597194]
[1759042916327,11.7986,201.76,201.71,7.58]
[1759042916826,11.7986,201.76,201.7,7.1597194]
[1759042917829,11.7986,201.76,201.71,7.58]
[1759042918032,11.7986,201.76,201.7,7.1597194]
[1759042918325,7.34,201.79,201.72,7.58]
[1759042919130,11.7979,201.79,201.72,12.0392]
[1759042919332,11.7979,201.79,201.73,7.58]
[1759042927235,11.7979,201.79,201.73,12.0389]
[1759042930840,4.4581,201.78,201.73,7.58]
[1759042931040,12.4681,201.78,201.72,7.88]
[1759042932239,12.4681,201.78,201.72,13.41967341]
[1759042934340,12.4681,201.78,201.72,17.87897341]
[1759042939536,8.01,201.78,201.73,4.459]
[1759042939740,2.7000194,201.83,201.73,12.339]
[1759042939943,8.01,201.82,201.73,12.339]
[1759042940345,8.01,201.82,201.74,7.88]
[1759042940743,4.4574,201.81,201.75,7.88]
[1759042941645,4.4574,201.81,201.75,12.3385]
[1759042941948,4.4574,201.81,201.75,4.4585]
[1759042942248,8.01,201.8,201.75,4.4585]
[1759042942650,8.01,201.8,201.76,7.88]
[1759042942845,8.01,201.8,201.75,4.4585]
[1759042943244,8.01,201.8,201.76,7.88]
[1759042943448,8.01,201.8,201.76,8.04]
[1759042943655,11.9169,201.83,201.77,8.04]
[1759042947457,11.9169,201.83,201.77,9.76811871]
[1759042949957,11.9169,201.83,201.77,8.04]
[1759042952462,4.4572,201.82,201.77,8.04]
[1759042953462,11.9172,201.82,201.77,8.04]
[1759042953663,4.4572,201.82,201.76,6.18641871]
[1759042953864,4.4572,201.82,201.77,8.04]
[1759042954063,11.9172,201.82,201.76,6.18641871]
[1759042954362,11.9172,201.82,201.77,8.04]
[1759042954661,4.4572,201.82,201.76,6.18641871]
[1759042955062,11.9172,201.82,201.77,8.04]
[1759042955261,4.4572,201.82,201.76,6.18641871]
[1759042955463,11.9172,201.82,201.77,8.04]
[1759042956261,7.46,201.81,201.77,8.04]
[1759042956858,7.46,201.81,201.76,6.18641871]
[1759042957362,7.46,201.81,201.77,8.04]
[1759042957862,7.46,201.81,201.76,6.18641871]
[1759042958056,7.46,201.81,201.77,8.04]
[1759042958257,11.9172,201.82,201.77,8.04]
[1759042958455,4.4572,201.82,201.76,6.18641871]
[1759042958962,4.4572,201.82,201.77,8.04]
[1759042959155,4.4572,201.82,201.76,6.18641871]
[1759042959760,11.9172,201.82,201.77,8.04]
[1759042960156,7.46,201.81,201.76,6.18641871]
[1759042961867,7.46,201.81,201.77,8.04]
[1759042962669,7.46,201.81,201.76,6.18641871]
[1759042962866,7.46,201.81,201.77,8.04]
[1759042963360,7.46,201.83,201.77,8.04]
[1759042964769,7.46,201.8,201.75,5.53967341]
[1759042964965,7.46,201.8,201.75,9.76811871]
[1759042965166,7.46,201.8,201.75,1.72811871]
[1759042965366,11.9175,201.81,201.76,8.04]
[1759042965560,4.4575,201.81,201.75,1.72811871]
[1759042966562,11.9175,201.81,201.76,8.04]
[1759042966763,7.46,201.8,201.75,9.76811871]
[1759042966970,7.46,201.8,201.75,1.72811871]
[1759042967164,4.4575,201.81,201.75,1.72811871]
[1759042967368,11.9175,201.81,201.75,9.76811871]
[1759042970973,11.9175,201.81,201.75,14.22661871]
[1759042973269,11.9175,201.81,201.75,19.76629212]
[1759042977177,6.18511871,201.83,201.77,1.72811871]
[1759042977375,7.57,201.82,201.77,1.72811871]
[1759042977574,6.18511871,201.83,201.77,1.72811871]
[1759042977973,7.57,201.84,201.78,7.37]
[1759042978572,12.0268,201.84,201.78,11.8278]
[1759042978872,4.4568,201.84,201.78,11.8278]
[1759042979080,7.57,201.83,201.78,11.8278]
[1759042979474,7.57,201.85,201.79,9.09811871]
[1759042980778,7.57,201.85,201.8,11.8274]
[1759042981171,7.57,201.85,201.8,4.4574]
[1759042981377,7.57,201.85,201.8,11.8274]
[1759042981672,7.57,201.85,201.8,4.4574]
[1759042981872,7.57,201.85,201.81,7.37]
[1759042982071,4.4563,201.86,201.81,7.37]
[1759042982269,7.57,201.85,201.81,7.37]
[1759042982474,4.4563,201.86,201.81,7.37]
[1759042982674,7.57,201.85,201.81,7.37]
[1759042982870,4.4563,201.86,201.81,7.37]
[1759042983076,7.57,201.85,201.81,7.37]
[1759042983276,4.4563,201.86,201.81,7.37]
[1759042983675,7.57,201.85,201.81,7.37]
[1759042984882,4.4563,201.86,201.81,7.37]
[1759042985484,7.57,201.85,201.81,7.37]
[1759042985874,4.4563,201.86,201.81,7.37]
[1759042986078,7.57,201.85,201.81,7.37]
[1759042986274,4.4563,201.86,201.81,7.37]
[1759042986771,7.57,201.85,201.81,7.37]
[1759042986980,4.4563,201.86,201.81,7.37]
[1759042987184,7.57,201.85,201.81,7.37]
[1759042987376,4.4563,201.86,201.81,7.37]
[1759042988477,7.57,201.85,201.8,4.4574]
[1759042988679,4.4563,201.86,201.8,4.4574]
[1759042989078,4.4563,201.86,201.81,1.72811871]
[1759042989282,7.57,201.85,201.81,1.72811871]
[1759042989484,7.57,201.85,201.82,7.37]
[1759042989779,7.57,201.85,201.81,6.18521871]
[1759042990177,7.57,201.85,201.82,7.48]
[1759042991085,7.57,201.85,201.81,6.18521871]
[1759042991780,7.57,201.85,201.82,7.48]
[1759042992181,7.57,201.85,201.81,6.18521871]
[1759042992486,7.47,201.88,201.84,7.48]
[1759042992682,4.4555,201.9,201.83,1.72811871]
[1759042993075,4.4555,201.9,201.84,7.48]
[1759042993286,7.47,201.89,201.84,7.48]
[1759042993588,4.4555,201.9,201.83,6.18491871]
[1759042993888,7.47,201.89,201.84,7.48]
[1759042994082,4.4555,201.9,201.83,6.18491871]
[1759042994282,7.47,201.89,201.84,7.48]
[1759042994483,4.4555,201.9,201.83,6.18491871]
[1759042994685,7.47,201.89,201.84,7.48]
[1759042994879,7.47,201.89,201.83,6.18491871]
[1759042995078,4.4555,201.9,201.83,6.18491871]
[1759042995485,7.47,201.89,201.83,6.18491871]
[1759042995686,4.4555,201.9,201.83,6.18491871]
[1759042995995,11.9258,201.89,201.83,9.20811871]
[1759043002890,7.47,201.89,201.84,7.48]
[1759043003091,7.47,201.89,201.83,6.18491871]
[1759043003291,8.02,201.9,201.84,8.12]
[1759043005201,12.4755,201.9,201.84,8.12]
[1759043008895,12.4755,201.9,201.84,4.4566]
[1759043009104,4.4555,201.9,201.84,4.4566]
[1759043009291,12.4755,201.9,201.85,8.12]
[1759043009798,12.4755,201.9,201.84,4.4566]
[1759043009995,4.4555,201.9,201.84,4.4566]
[1759043010399,12.4755,201.9,201.85,8.12]
[1759043010706,4.4555,201.9,201.84,4.4566]
[1759043011092,4.4555,201.9,201.85,8.12]
[1759043011298,4.4555,201.9,201.84,4.4566]
[1759043011496,12.4755,201.9,201.85,8.12]
[1759043011796,12.4755,201.9,201.84,4.4566]
[1759043011999,8.02,201.89,201.84,4.4566]
[1759043012298,12.4755,201.9,201.85,8.12]
[1759043012495,4.4555,201.9,201.84,4.4566]
[1759043012900,8.02,201.89,201.84,12.5766]
[1759043013095,12.4755,201.9,201.84,4.4566]
[1759043013302,12.4755,201.9,201.84,12.5766]
[1759043017015,4.4555,201.9,201.84,4.4566]
[1759043017502,8.02,201.89,201.84,4.4566]
[1759043017706,4.4555,201.9,201.85,8.12]
[1759043017907,8.02,201.89,201.84,4.4566]
[1759043018106,4.4555,201.9,201.85,8.12]
[1759043018409,4.4555,201.9,201.84,4.4566]
[1759043019109,8.02,201.89,201.85,8.12]
[1759043019302,4.4555,201.9,201.85,8.12]
[1759043019807,8.02,201.89,201.85,8.12]
[1759043020007,4.4555,201.9,201.85,8.12]
[1759043020208,4.4555,201.9,201.84,8.12]
[1759043020698,12.4755,201.9,201.84,8.12]